[Event "MČR juniorů a juniorek v rapid šachu 2023"]
[Site "Czech Republic"]
[Date "2023.09.24"]
[Round "7.24"]
[White "Housa, Jan"]
[Black "Jun, Robert"]
[Result "0-1"]
[TimeControl "20 min + 5 sec per move"]
[WhiteFideId "23736356"]
[BlackFideId "23709510"]
[WhiteElo "1439"]
[BlackElo "1340"]

1. d4 {[%clk 00:20:08]} d5 {[%clk 00:20:09]} 2. c4 {[%clk 00:20:11]} {[%emt
00:00:04]} e6 {[%clk 00:20:13]} {[%emt 00:00:01]} 3. Nf3 {[%clk 00:20:15]}
{[%emt 00:00:01]} c5 {[%clk 00:20:17]} 4. cxd5 {[%clk 00:20:16]} {[%emt
00:00:05]} exd5 {[%clk 00:20:21]} {[%emt 00:00:01]} 5. g3 {[%clk 00:20:19]}
{[%emt 00:00:01]} Nf6 {[%clk 00:20:24]} {[%emt 00:00:02]} 6. Bg2 {[%clk
00:20:22]} {[%emt 00:00:01]} Nc6 {[%clk 00:20:27]} {[%emt 00:00:02]} 7. O-O
{[%clk 00:20:22]} {[%emt 00:00:06]} cxd4 {[%clk 00:20:20]} {[%emt 00:00:12]} 8.
Nxd4 {[%clk 00:20:24]} {[%emt 00:00:03]} Bc5 {[%clk 00:20:24]} 9. Nb3 {[%clk
00:20:04]} {[%emt 00:00:25]} Bb6 {[%clk 00:20:19]} {[%emt 00:00:09]} 10. Bg5
{[%clk 00:19:14]} {[%emt 00:00:55]} d4 {[%clk 00:19:50]} {[%emt 00:00:35]} 11.
N1d2 {[%clk 00:18:20]} {[%emt 00:00:59]} O-O {[%clk 00:19:47]} {[%emt
00:00:08]} 12. Ne4 {[%clk 00:17:34]} {[%emt 00:00:51]} Bf5 {[%clk 00:19:30]}
{[%emt 00:00:22]} 13. Nxf6+ {[%clk 00:16:29]} {[%emt 00:01:11]} gxf6 {[%clk
00:19:33]} {[%emt 00:00:01]} 14. Bf4 {[%clk 00:16:28]} {[%emt 00:00:06]} d3
{[%clk 00:19:09]} {[%emt 00:00:29]} 15. exd3 {[%clk 00:14:37]} {[%emt
00:01:56]} Qxd3 {[%clk 00:19:11]} {[%emt 00:00:04]} 16. Qxd3 {[%clk 00:12:03]}
{[%emt 00:02:39]} Bxd3 {[%clk 00:19:15]} {[%emt 00:00:02]} 17. Rfd1 {[%clk
00:11:59]} {[%emt 00:00:09]} Rad8 {[%clk 00:19:11]} {[%emt 00:00:09]} 18. Rd2
{[%clk 00:11:09]} {[%emt 00:00:54]} Rd7 {[%clk 00:18:33]} {[%emt 00:00:43]} 19.
Be4 {[%clk 00:09:50]} {[%emt 00:01:25]} Rfd8 {[%clk 00:14:37]} {[%emt
00:04:01]} 20. Rad1 {[%clk 00:09:35]} {[%emt 00:00:20]} Be2 {[%clk 00:13:02]}
{[%emt 00:01:41]} 21. Rxd7 {[%clk 00:07:45]} {[%emt 00:01:55]} Bxd1 {[%clk
00:13:05]} {[%emt 00:00:02]} 22. Rxb7 {[%clk 00:07:30]} {[%emt 00:00:20]} Bxb3
{[%clk 00:13:07]} {[%emt 00:00:02]} 23. axb3 {[%clk 00:07:27]} {[%emt
00:00:09]} Nd4 {[%clk 00:13:11]} 24. Be3 {[%clk 00:06:22]} {[%emt 00:01:10]}
Rd6 {[%clk 00:09:53]} {[%emt 00:03:22]} 25. b4 {[%clk 00:03:25]} {[%emt
00:03:02]} Kg7 {[%clk 00:07:54]} {[%emt 00:02:04]} 26. Kg2 {[%clk 00:02:02]}
{[%emt 00:01:28]} Ne6 {[%clk 00:07:25]} {[%emt 00:00:34]} 27. Bxb6 {[%clk
00:01:11]} {[%emt 00:00:56]} Rxb6 {[%clk 00:07:29]} {[%emt 00:00:01]} 28. Rxa7
{[%clk 00:01:06]} {[%emt 00:00:10]} Rxb4 {[%clk 00:07:25]} {[%emt 00:00:09]} 29.
Bd5 {[%clk 00:00:55]} {[%emt 00:00:16]} Kg6 {[%clk 00:07:20]} {[%emt 00:00:10]}
30. b3 {[%clk 00:00:52]} {[%emt 00:00:07]} Rd4 {[%clk 00:07:00]} {[%emt
00:00:25]} 31. Bc4 {[%clk 00:00:50]} {[%emt 00:00:08]} h5 {[%clk 00:06:54]}
{[%emt 00:00:10]} 32. h4 {[%clk 00:00:48]} {[%emt 00:00:07]} Rd6 {[%clk
00:06:53]} {[%emt 00:00:06]} 33. b4 {[%clk 00:00:44]} {[%emt 00:00:10]} Rd4
{[%clk 00:06:50]} {[%emt 00:00:08]} 34. Bxe6 {[%clk 00:00:28]} {[%emt
00:00:20]} fxe6 {[%clk 00:06:53]} {[%emt 00:00:03]} 35. b5 {[%clk 00:00:24]}
{[%emt 00:00:08]} Rb4 {[%clk 00:06:47]} {[%emt 00:00:10]} 36. Rb7 {[%clk
00:00:25]} {[%emt 00:00:05]} Kf5 {[%clk 00:06:48]} {[%emt 00:00:04]} 37. b6
{[%clk 00:00:25]} {[%emt 00:00:06]} Ke5 {[%clk 00:06:48]} {[%emt 00:00:04]} 38.
Rh7 {[%clk 00:00:15]} {[%emt 00:00:15]} Rxb6 {[%clk 00:06:46]} {[%emt
00:00:08]} 39. Rxh5+ {[%clk 00:00:19]} Kd6 {[%clk 00:06:51]} 40. g4 {[%clk
00:00:19]} {[%emt 00:00:05]} Rb4 {[%clk 00:06:50]} {[%emt 00:00:05]} 41. Kg3
{[%clk 00:00:22]} {[%emt 00:00:03]} e5 {[%clk 00:06:51]} {[%emt 00:00:04]} 42.
Rf5 {[%clk 00:00:23]} {[%emt 00:00:04]} Ke6 {[%clk 00:06:50]} {[%emt 00:00:06]}
43. f3 {[%clk 00:00:24]} {[%emt 00:00:04]} Rb3 {[%clk 00:06:48]} {[%emt
00:00:06]} 44. Kf2 {[%clk 00:00:07]} {[%emt 00:00:22]} Rc3 {[%clk 00:06:33]}
{[%emt 00:00:20]} 45. Rh5 {[%clk 00:00:07]} {[%emt 00:00:05]} Kf7 {[%clk
00:06:27]} {[%emt 00:00:11]} 46. Rh7+ {[%clk 00:00:09]} {[%emt 00:00:03]} Kg6
{[%clk 00:06:29]} {[%emt 00:00:02]} 47. Ra7 {[%clk 00:00:13]} {[%emt 00:00:03]}
Rc2+ {[%clk 00:06:20]} {[%emt 00:00:13]} 48. Ke3 {[%clk 00:00:15]} {[%emt
00:00:03]} Rc3+ {[%clk 00:06:24]} 49. Ke2 {[%clk 00:00:19]} {[%emt 00:00:02]}
Rc2+ {[%clk 00:06:22]} {[%emt 00:00:07]} 50. Kd3 {[%clk 00:00:23]} Rh2 {[%clk
00:06:26]} 51. h5+ {[%clk 00:00:17]} {[%emt 00:00:11]} Kg5 {[%clk 00:06:30]} 52.
Ke3 {[%clk 00:00:15]} {[%emt 00:00:08]} Rb2 {[%clk 00:06:24]} {[%emt 00:00:10]}
53. Rg7+ {[%clk 00:00:17]} {[%emt 00:00:04]} Kh4 {[%clk 00:06:19]} {[%emt
00:00:10]} 54. h6 {[%clk 00:00:07]} {[%emt 00:00:15]} Kg3 {[%clk 00:05:56]}
{[%emt 00:00:28]} 55. h7 {[%clk 00:00:09]} {[%emt 00:00:04]} Rh2 {[%clk
00:05:55]} {[%emt 00:00:05]} 56. Ke4 {[%clk 00:00:08]} {[%emt 00:00:07]} Rh4
{[%clk 00:05:45]} {[%emt 00:00:14]} 57. Ke3 {[%clk 00:00:00]} {[%emt 00:00:09]}
0-1

[Event "MČR juniorů a juniorek v rapid šachu 2023"]
[Site "Czech Republic"]
[Date "2023.09.24"]
[Round "7.26"]
[White "Krajicek, Matthew"]
[Black "Pistej, Tomas"]
[Result "0-1"]
[TimeControl "20 min + 5 sec per move"]
[WhiteFideId "23740175"]
[BlackFideId "23750740"]
[WhiteElo "1283"]
[BlackElo "1640"]

1. d4 {[%clk 00:20:08]} {[%emt 00:00:02]} d5 {[%clk 00:20:07]} {[%emt
00:00:03]} 2. Bf4 {[%clk 00:20:10]} {[%emt 00:00:03]} Nf6 {[%clk 00:20:06]}
{[%emt 00:00:06]} 3. e3 {[%clk 00:20:08]} {[%emt 00:00:08]} c5 {[%clk
00:19:53]} {[%emt 00:00:17]} 4. c3 {[%clk 00:19:51]} {[%emt 00:00:21]} Nc6
{[%clk 00:19:52]} {[%emt 00:00:06]} 5. Bd3 {[%clk 00:19:51]} {[%emt 00:00:06]}
e6 {[%clk 00:19:39]} {[%emt 00:00:18]} 6. Nf3 {[%clk 00:19:47]} {[%emt
00:00:08]} Be7 {[%clk 00:19:14]} {[%emt 00:00:30]} 7. Nbd2 {[%clk 00:19:34]}
{[%emt 00:00:19]} O-O {[%clk 00:18:52]} {[%emt 00:00:27]} 8. O-O {[%clk
00:18:48]} {[%emt 00:00:51]} b6 {[%clk 00:18:39]} {[%emt 00:00:19]} 9. Ne5
{[%clk 00:17:50]} {[%emt 00:01:02]} Nxe5 {[%clk 00:17:55]} {[%emt 00:00:49]} 10.
dxe5 {[%clk 00:17:25]} {[%emt 00:00:30]} Nd7 {[%clk 00:17:13]} {[%emt
00:00:47]} 11. Qg4 {[%clk 00:16:03]} {[%emt 00:01:26]} g6 {[%clk 00:15:42]}
{[%emt 00:01:36]} 12. Nf3 {[%clk 00:15:23]} {[%emt 00:00:44]} f5 {[%clk
00:14:13]} {[%emt 00:01:35]} 13. exf6 {[%clk 00:14:37]} {[%emt 00:00:52]} Nxf6
{[%clk 00:14:09]} {[%emt 00:00:08]} 14. Qh3 {[%clk 00:09:05]} {[%emt 00:05:37]}
e5 {[%emt 00:06:59]} 15. Qh6 {[%emt 00:00:06]} e4 {[%emt 00:00:11]} 0-1

[Event "MČR juniorů a juniorek v rapid šachu 2023"]
[Site "Czech Republic"]
[Date "2023.09.24"]
[Round "7.27"]
[White "Dudkova, Josefina"]
[Black "Glasbergerova, Lucie"]
[Result "1-0"]
[TimeControl "20 min + 5 sec per move"]
[WhiteFideId "23712350"]
[BlackFideId "23725184"]
[WhiteElo "1437"]
[BlackElo "1314"]

1. d4 {[%clk 00:20:05]} {[%emt 00:00:03]} d5 {[%clk 00:19:29]} {[%emt
00:00:37]} 2. Bf4 {[%clk 00:20:06]} {[%emt 00:00:04]} Nc6 {[%clk 00:19:33]}
{[%emt 00:00:06]} 3. e3 {[%clk 00:20:05]} {[%emt 00:00:05]} a6 {[%clk
00:19:22]} {[%emt 00:00:16]} 4. c3 {[%clk 00:19:59]} {[%emt 00:00:11]} Bf5
{[%clk 00:19:20]} {[%emt 00:00:06]} 5. Nf3 {[%clk 00:19:56]} {[%emt 00:00:09]}
Nf6 {[%clk 00:19:21]} {[%emt 00:00:04]} 6. Nbd2 {[%clk 00:19:49]} {[%emt
00:00:12]} e6 {[%clk 00:19:22]} {[%emt 00:00:04]} 7. Be2 {[%clk 00:19:49]}
{[%emt 00:00:05]} Bd6 {[%clk 00:19:21]} {[%emt 00:00:06]} 8. Ne5 {[%clk
00:19:50]} {[%emt 00:00:05]} Bxe5 {[%clk 00:18:51]} {[%emt 00:00:35]} 9. dxe5
{[%clk 00:19:49]} {[%emt 00:00:05]} Ne4 {[%clk 00:18:39]} {[%emt 00:00:18]} 10.
g4 {[%clk 00:19:29]} {[%emt 00:00:25]} Bg6 {[%clk 00:17:58]} {[%emt 00:00:45]}
11. h4 {[%clk 00:19:25]} {[%emt 00:00:10]} h6 {[%clk 00:17:32]} {[%emt
00:00:31]} 12. Nf3 {[%clk 00:19:05]} {[%emt 00:00:25]} f5 {[%clk 00:16:59]}
{[%emt 00:00:38]} 13. exf6 {[%clk 00:18:44]} {[%emt 00:00:26]} Nxf6 {[%clk
00:16:52]} {[%emt 00:00:12]} 14. g5 {[%clk 00:18:10]} {[%emt 00:00:40]} Ne4
{[%clk 00:16:06]} {[%emt 00:00:51]} 15. gxh6 {[%clk 00:17:30]} {[%emt
00:00:45]} gxh6 {[%clk 00:16:06]} {[%emt 00:00:04]} 16. Nd4 {[%clk 00:17:11]}
{[%emt 00:00:24]} Nxd4 {[%clk 00:15:46]} {[%emt 00:00:26]} 17. Qxd4 {[%clk
00:17:11]} {[%emt 00:00:05]} Rh7 {[%clk 00:14:41]} {[%emt 00:01:10]} 18. f3
{[%clk 00:15:21]} {[%emt 00:01:56]} Nd6 {[%clk 00:13:27]} {[%emt 00:01:18]} 19.
O-O-O {[%clk 00:14:43]} {[%emt 00:00:42]} Nf5 {[%clk 00:13:01]} {[%emt
00:00:32]} 20. Qe5 {[%clk 00:14:20]} {[%emt 00:00:28]} Qe7 {[%clk 00:10:58]}
{[%emt 00:02:08]} 21. h5 {[%clk 00:13:32]} {[%emt 00:00:54]} Bf7 {[%clk
00:09:38]} {[%emt 00:01:24]} 22. Bd3 {[%clk 00:12:31]} {[%emt 00:01:06]} Bg8
{[%clk 00:06:08]} {[%emt 00:03:35]} 23. Bxf5 {[%clk 00:12:12]} {[%emt
00:00:24]} exf5 {[%clk 00:06:08]} {[%emt 00:00:05]} 24. Qxf5 {[%clk 00:12:03]}
{[%emt 00:00:14]} Be6 {[%clk 00:05:04]} {[%emt 00:01:09]} 25. Qg6+ {[%clk
00:11:34]} {[%emt 00:00:34]} Qf7 {[%clk 00:04:43]} {[%emt 00:00:25]} 26. Bxh6
{[%clk 00:11:11]} {[%emt 00:00:28]} O-O-O {[%clk 00:02:52]} {[%emt 00:01:57]}
27. Qxf7 {[%clk 00:10:54]} {[%emt 00:00:22]} Bxf7 {[%clk 00:02:51]} {[%emt
00:00:05]} 28. Bf4 {[%clk 00:10:55]} {[%emt 00:00:05]} Rxh5 {[%clk 00:02:35]}
{[%emt 00:00:21]} 29. Rhg1 {[%clk 00:08:44]} {[%emt 00:02:15]} Rh3 {[%clk
00:01:57]} {[%emt 00:00:44]} 30. Rg7 {[%clk 00:07:46]} {[%emt 00:01:03]} Rd7
{[%clk 00:02:00]} {[%emt 00:00:02]} 31. Rg3 {[%clk 00:07:05]} {[%emt 00:00:46]}
Rxg3 {[%clk 00:01:49]} {[%emt 00:00:16]} 32. Bxg3 {[%clk 00:07:09]} {[%emt
00:00:01]} Bh5 {[%clk 00:01:49]} {[%emt 00:00:06]} 33. Rf1 {[%clk 00:07:10]}
{[%emt 00:00:03]} Re7 {[%clk 00:01:37]} {[%emt 00:00:17]} 34. Kd2 {[%clk
00:07:09]} {[%emt 00:00:06]} c5 {[%clk 00:01:05]} {[%emt 00:00:37]} 35. Bd6
{[%clk 00:06:35]} {[%emt 00:00:39]} Rf7 {[%clk 00:00:53]} {[%emt 00:00:17]} 36.
f4 {[%clk 00:06:36]} {[%emt 00:00:05]} b6 {[%clk 00:00:52]} {[%emt 00:00:06]}
37. b4 {[%clk 00:04:56]} {[%emt 00:01:44]} c4 {[%clk 00:00:40]} {[%emt
00:00:16]} 38. f5 {[%clk 00:04:33]} {[%emt 00:00:28]} Kd7 {[%clk 00:00:26]}
{[%emt 00:00:19]} 39. Be5 {[%clk 00:04:32]} {[%emt 00:00:06]} Bg4 {[%clk
00:00:11]} {[%emt 00:00:20]} 40. f6 {[%clk 00:04:28]} {[%emt 00:00:08]} Ke6
{[%clk 00:00:14]} {[%emt 00:00:02]} 41. Bd4 {[%clk 00:04:26]} {[%emt 00:00:08]}
b5 {[%clk 00:00:16]} {[%emt 00:00:03]} 42. Rg1 {[%clk 00:03:52]} {[%emt
00:00:38]} Bf5 {[%clk 00:00:19]} {[%emt 00:00:03]} 43. Rg8 {[%clk 00:03:38]}
{[%emt 00:00:19]} Kd6 {[%clk 00:00:14]} {[%emt 00:00:10]} 44. Ra8 {[%clk
00:03:34]} {[%emt 00:00:09]} Kc7 {[%clk 00:00:09]} {[%emt 00:00:10]} 45. Ra7+
{[%clk 00:03:33]} {[%emt 00:00:06]} 1-0

[Event "MČR juniorů a juniorek v rapid šachu 2023"]
[Site "Czech Republic"]
[Date "2023.09.24"]
[Round "7.28"]
[White "Stara, Zuzana"]
[Black "Tvaroh, Vitezslav"]
[Result "1-0"]
[TimeControl "20 min + 5 sec per move"]
[WhiteFideId "23733543"]
[BlackFideId "23704209"]
[WhiteElo "1377"]
[BlackElo "1303"]

1. e4 {[%clk 00:20:09]} {[%emt 00:00:01]} c5 {[%clk 00:20:00]} {[%emt
00:00:10]} 2. Nf3 {[%clk 00:20:12]} {[%emt 00:00:01]} d6 {[%clk 00:20:00]}
{[%emt 00:00:06]} 3. d4 {[%clk 00:20:15]} {[%emt 00:00:01]} cxd4 {[%clk
00:20:00]} {[%emt 00:00:05]} 4. Nxd4 {[%clk 00:20:18]} {[%emt 00:00:01]} Nf6
{[%clk 00:19:57]} {[%emt 00:00:08]} 5. Nc3 {[%clk 00:20:20]} {[%emt 00:00:04]}
g6 {[%clk 00:19:50]} {[%emt 00:00:12]} 6. Be3 {[%clk 00:20:14]} {[%emt
00:00:10]} Bg7 {[%clk 00:19:49]} {[%emt 00:00:07]} 7. f3 {[%clk 00:20:04]}
{[%emt 00:00:16]} Nc6 {[%clk 00:19:36]} {[%emt 00:00:18]} 8. Qd2 {[%clk
00:19:52]} {[%emt 00:00:16]} Nxd4 {[%clk 00:19:28]} {[%emt 00:00:13]} 9. Bxd4
{[%clk 00:19:48]} {[%emt 00:00:10]} a6 {[%clk 00:19:20]} {[%emt 00:00:13]} 10.
g4 {[%clk 00:18:17]} {[%emt 00:01:35]} h5 {[%clk 00:18:37]} {[%emt 00:00:48]}
11. g5 {[%clk 00:17:45]} {[%emt 00:00:36]} e5 {[%clk 00:16:41]} {[%emt
00:02:01]} 12. gxf6 {[%clk 00:16:59]} {[%emt 00:00:51]} Qxf6 {[%clk 00:16:44]}
{[%emt 00:00:03]} 13. Be3 {[%clk 00:15:51]} {[%emt 00:01:13]} Qxf3 {[%clk
00:16:40]} {[%emt 00:00:09]} 14. Bg2 {[%clk 00:15:21]} {[%emt 00:00:34]} Qg4
{[%clk 00:16:14]} {[%emt 00:00:31]} 15. h3 {[%clk 00:14:18]} {[%emt 00:01:09]}
Qe6 {[%clk 00:12:56]} {[%emt 00:03:23]} 16. Nd5 {[%clk 00:13:44]} {[%emt
00:00:39]} Qd7 {[%clk 00:11:19]} {[%emt 00:01:43]} 17. Nb6 {[%clk 00:12:51]}
{[%emt 00:00:57]} Qb5 {[%clk 00:11:22]} {[%emt 00:00:02]} 18. Nxa8 {[%clk
00:12:22]} {[%emt 00:00:35]} Qxb2 {[%clk 00:11:08]} {[%emt 00:00:19]} 19. Nc7+
{[%clk 00:11:50]} {[%emt 00:00:36]} Kf8 {[%clk 00:09:44]} {[%emt 00:01:29]} 20.
O-O {[%clk 00:10:02]} {[%emt 00:01:53]} Kg8 {[%clk 00:09:23]} {[%emt 00:00:26]}
21. Ne8 {[%clk 00:08:56]} {[%emt 00:01:11]} 1-0

[Event "MČR juniorů a juniorek v rapid šachu 2023"]
[Site "Czech Republic"]
[Date "2023.09.24"]
[Round "7.29"]
[White "Jun, Rostislav"]
[Black "Cinkova, Vicky"]
[Result "1-0"]
[TimeControl "20 min + 5 sec per move"]
[WhiteFideId "23719524"]
[BlackFideId "23725826"]
[WhiteElo "1317"]
[BlackElo "1300"]

1. e4 {[%clk 00:20:07]} {[%emt 00:00:02]} c5 {[%clk 00:19:58]} {[%emt
00:00:13]} 2. Nf3 {[%clk 00:20:09]} {[%emt 00:00:02]} a6 {[%clk 00:20:02]}
{[%emt 00:00:02]} 3. d4 {[%clk 00:20:11]} {[%emt 00:00:03]} cxd4 {[%clk
00:20:05]} {[%emt 00:00:02]} 4. Nxd4 {[%clk 00:20:14]} {[%emt 00:00:02]} g6
{[%clk 00:20:08]} {[%emt 00:00:02]} 5. Nc3 {[%clk 00:20:17]} {[%emt 00:00:02]}
Bg7 {[%clk 00:20:11]} {[%emt 00:00:02]} 6. Be3 {[%clk 00:20:13]} {[%emt
00:00:09]} Nc6 {[%clk 00:20:02]} {[%emt 00:00:13]} 7. Be2 {[%clk 00:19:39]}
{[%emt 00:00:39]} Nf6 {[%clk 00:20:03]} {[%emt 00:00:04]} 8. O-O {[%clk
00:19:39]} {[%emt 00:00:06]} O-O {[%clk 00:20:06]} {[%emt 00:00:02]} 9. Nxc6
{[%clk 00:18:13]} {[%emt 00:01:31]} dxc6 {[%clk 00:19:34]} {[%emt 00:00:37]} 10.
f4 {[%clk 00:17:45]} {[%emt 00:00:33]} Qc7 {[%clk 00:16:55]} {[%emt 00:02:44]}
11. e5 {[%clk 00:17:04]} {[%emt 00:00:47]} Rd8 {[%clk 00:16:43]} {[%emt
00:00:17]} 12. Qe1 {[%clk 00:15:51]} {[%emt 00:01:16]} Nd5 {[%clk 00:16:47]}
{[%emt 00:00:03]} 13. Nxd5 {[%clk 00:15:43]} {[%emt 00:00:14]} Rxd5 {[%clk
00:16:16]} {[%emt 00:00:35]} 14. Qf2 {[%clk 00:15:16]} {[%emt 00:00:32]} Bf5
{[%clk 00:16:07]} {[%emt 00:00:13]} 15. c4 {[%clk 00:15:07]} {[%emt 00:00:14]}
Rd7 {[%clk 00:14:00]} {[%emt 00:02:12]} 16. Rad1 {[%clk 00:13:17]} {[%emt
00:01:54]} Rxd1 {[%clk 00:12:25]} {[%emt 00:01:40]} 17. Rxd1 {[%clk 00:13:19]}
{[%emt 00:00:04]} b5 {[%clk 00:11:25]} {[%emt 00:01:05]} 18. Bb6 {[%clk
00:12:57]} {[%emt 00:00:26]} Qb7 {[%clk 00:11:12]} {[%emt 00:00:19]} 19. c5
{[%clk 00:11:46]} {[%emt 00:01:16]} f6 {[%clk 00:08:10]} {[%emt 00:03:07]} 20.
g4 {[%clk 00:08:18]} {[%emt 00:03:32]} Bc2 {[%clk 00:07:18]} {[%emt 00:00:57]}
21. Rc1 {[%clk 00:07:37]} {[%emt 00:00:47]} Be4 {[%clk 00:07:11]} {[%emt
00:00:11]} 22. exf6 {[%clk 00:04:53]} {[%emt 00:02:50]} exf6 {[%clk 00:06:18]}
{[%emt 00:00:58]} 23. b3 {[%clk 00:04:25]} {[%emt 00:00:33]} f5 {[%clk
00:06:16]} {[%emt 00:00:07]} 24. Rd1 {[%clk 00:03:56]} {[%emt 00:00:33]} Rf8
{[%clk 00:05:23]} {[%emt 00:00:59]} 25. gxf5 {[%clk 00:01:49]} {[%emt
00:02:13]} Bxf5 {[%clk 00:05:21]} {[%emt 00:00:07]} 26. Bd3 {[%clk 00:00:55]}
{[%emt 00:00:59]} Bxd3 {[%clk 00:04:07]} {[%emt 00:01:19]} 27. Rxd3 {[%clk
00:00:59]} {[%emt 00:00:01]} Qc8 {[%clk 00:02:34]} {[%emt 00:01:38]} 28. Qg3
{[%clk 00:00:16]} {[%emt 00:00:49]} Qf5 {[%clk 00:02:11]} {[%emt 00:00:27]} 29.
Rf3 {[%clk 00:00:07]} {[%emt 00:00:15]} Bh6 {[%clk 00:01:24]} {[%emt 00:00:50]}
30. h3 {[%clk 00:00:07]} {[%emt 00:00:06]} Bxf4 {[%clk 00:01:08]} {[%emt
00:00:20]} 31. Qg4 {[%clk 00:00:06]} {[%emt 00:00:05]} Bh2+ {[%clk 00:00:23]}
{[%emt 00:00:50]} 32. Kg2 {[%clk 00:00:10]} {[%emt 00:00:02]} Qc2+ {[%clk
00:00:26]} {[%emt 00:00:02]} 33. Kh1 {[%clk 00:00:11]} {[%emt 00:00:03]} Rxf3
{[%clk 00:00:09]} {[%emt 00:00:23]} 34. Qxf3 {[%clk 00:00:15]} Qxa2 {[%clk
00:00:08]} {[%emt 00:00:06]} 35. Qxc6 {[%clk 00:00:16]} {[%emt 00:00:04]} Bf4
{[%clk 00:00:09]} {[%emt 00:00:03]} 36. Qe6+ {[%clk 00:00:19]} {[%emt
00:00:03]} Kg7 {[%clk 00:00:12]} {[%emt 00:00:02]} 37. Qd7+ {[%clk 00:00:22]}
{[%emt 00:00:02]} Kh6 {[%clk 00:00:15]} {[%emt 00:00:02]} 38. Bd8 {[%clk
00:00:23]} {[%emt 00:00:04]} Qb1+ {[%clk 00:00:18]} {[%emt 00:00:03]} 39. Kg2
{[%clk 00:00:26]} {[%emt 00:00:01]} Qc2+ {[%clk 00:00:22]} 40. Kf3 {[%clk
00:00:30]} {[%emt 00:00:01]} Bg5 {[%clk 00:00:19]} {[%emt 00:00:08]} 41. Bxg5+
{[%clk 00:00:33]} {[%emt 00:00:02]} Kxg5 {[%clk 00:00:23]} 42. Qg4+ {[%clk
00:00:36]} {[%emt 00:00:01]} Kh6 {[%clk 00:00:28]} 43. Qh4+ {[%clk 00:00:38]}
{[%emt 00:00:04]} Kg7 {[%clk 00:00:31]} {[%emt 00:00:02]} 44. Qe7+ {[%clk
00:00:42]} {[%emt 00:00:01]} Kh6 {[%clk 00:00:28]} {[%emt 00:00:07]} 45. Qh4+
{[%clk 00:00:46]} {[%emt 00:00:02]} Kg7 {[%clk 00:00:30]} {[%emt 00:00:03]} 46.
Qe7+ {[%clk 00:00:49]} {[%emt 00:00:01]} Kh6 {[%clk 00:00:32]} {[%emt
00:00:04]} 47. Qh4+ {[%clk 00:00:53]} {[%emt 00:00:01]} Kg7 {[%emt 00:00:03]}
48. Qd4+ {[%clk 00:00:42]} {[%emt 00:00:15]} Kh6 {[%clk 00:00:34]} {[%emt
00:00:06]} 49. Qf4+ {[%clk 00:00:29]} {[%emt 00:00:17]} Kg7 {[%clk 00:00:36]}
{[%emt 00:00:03]} 50. Qe5+ {[%clk 00:00:17]} {[%emt 00:00:18]} Kh6 {[%clk
00:00:30]} {[%emt 00:00:11]} 51. Qe3+ {[%clk 00:00:21]} Kg7 {[%clk 00:00:32]}
{[%emt 00:00:03]} 52. Qe5+ {[%clk 00:00:16]} {[%emt 00:00:10]} Kh6 {[%clk
00:00:35]} {[%emt 00:00:02]} 53. Qe3+ {[%clk 00:00:21]} Kg7 {[%clk 00:00:39]}
{[%emt 00:00:01]} 54. Kf4 {[%clk 00:00:23]} {[%emt 00:00:03]} Qf5+ {[%clk
00:00:40]} {[%emt 00:00:04]} 55. Kg3 {[%clk 00:00:25]} {[%emt 00:00:04]} h5
{[%clk 00:00:19]} {[%emt 00:00:26]} 56. c6 {[%clk 00:00:21]} {[%emt 00:00:09]}
Qc8 {[%clk 00:00:11]} {[%emt 00:00:13]} 57. Qe7+ {[%clk 00:00:21]} {[%emt
00:00:04]} Kh6 {[%clk 00:00:10]} {[%emt 00:00:06]} 58. Qe3+ {[%clk 00:00:23]}
{[%emt 00:00:03]} g5 {[%clk 00:00:10]} {[%emt 00:00:06]} 59. Qe4 {[%clk
00:00:11]} {[%emt 00:00:17]} Qc7+ {[%clk 00:00:08]} {[%emt 00:00:02]} 60. Kf2
{[%clk 00:00:11]} Qh2+ {[%clk 00:00:12]} {[%emt 00:01:08]} 61. Kf3 {[%clk
00:00:15]} {[%emt 00:00:02]} Qxh3+ {[%clk 00:00:16]} {[%emt 00:00:01]} 62. Ke2
{[%clk 00:00:16]} {[%emt 00:00:03]} Qh2+ {[%clk 00:00:20]} 63. Kd3 {[%clk
00:00:20]} {[%emt 00:00:02]} Qh3+ {[%clk 00:00:23]} {[%emt 00:00:02]} 64. Kd4
{[%clk 00:00:23]} {[%emt 00:00:01]} Qc8 {[%clk 00:00:18]} {[%emt 00:00:10]} 65.
Kc5 {[%clk 00:00:11]} {[%emt 00:00:18]} Qf8+ {[%clk 00:00:21]} {[%emt
00:00:02]} 66. Kd5 {[%clk 00:00:13]} {[%emt 00:00:03]} Qd8+ {[%clk 00:00:24]}
{[%emt 00:00:54]} 67. Kc5 {[%clk 00:00:11]} {[%emt 00:00:05]} Qf8+ {[%clk
00:00:28]} {[%emt 00:00:01]} 68. Kd4 {[%clk 00:00:15]} Qd6+ {[%clk 00:00:32]}
{[%emt 00:00:02]} 69. Qd5 {[%clk 00:00:18]} Qf4+ {[%clk 00:00:36]} {[%emt
00:00:01]} 70. Kc5 {[%clk 00:00:22]} Qf8+ {[%clk 00:00:40]} 71. Qd6+ {[%clk
00:00:23]} {[%emt 00:00:04]} Qxd6+ {[%clk 00:00:43]} {[%emt 00:00:24]} 72. Kxd6
{[%clk 00:01:31]} {[%emt 00:00:01]} h4 {[%clk 00:00:47]} 73. c7 {[%clk
00:01:35]} h3 {[%clk 00:00:51]} 74. c8=Q {[%clk 00:01:37]} {[%emt 00:00:03]} a5
{[%clk 00:00:27]} {[%emt 00:00:30]} 75. Qxh3 {[%clk 00:01:39]} {[%emt
00:00:02]} Kg6 {[%clk 00:00:30]} {[%emt 00:00:01]} 76. Qe6 {[%clk 00:01:42]}
{[%emt 00:00:02]} Kh5 {[%clk 00:00:35]} {[%emt 00:00:02]} 77. Qe2+ {[%clk
00:01:45]} {[%emt 00:00:01]} g4 {[%clk 00:00:39]} 78. Qxb5+ {[%clk 00:01:49]}
{[%emt 00:00:03]} Kh4 {[%clk 00:00:43]} {[%emt 00:00:01]} 79. Qf1 {[%clk
00:01:52]} {[%emt 00:00:02]} g3 {[%clk 00:00:47]} 80. Qg2 {[%clk 00:01:55]}
{[%emt 00:00:01]} Kg4 {[%clk 00:00:51]} 81. Ke5 {[%clk 00:01:59]} {[%emt
00:00:02]} Kh4 {[%clk 00:00:54]} {[%emt 00:00:02]} 82. Kd5 {[%clk 00:01:58]}
{[%emt 00:00:05]} Kg4 {[%clk 00:00:57]} {[%emt 00:00:02]} 83. Kc5 {[%clk
00:02:02]} {[%emt 00:00:01]} Kh4 {[%clk 00:01:01]} {[%emt 00:00:01]} 84. Kb5
{[%clk 00:02:03]} {[%emt 00:00:04]} 1-0